Cogmind - Beta 15 @@@ ROGUE MODE // 2025.09.03 @ 18:58:46 Player: kiiro Result: Self-destructed Performance ------------- Evolutions (2) 1000 Regions Visited (5) 1000 Robots Destroyed (23) 115 Value Destroyed (692) 692 Prototype IDs (2) 40 Alien Tech Used (0) 0 Bonus (0) 0 TOTAL SCORE: 2847 Bonus ------- None Cogmind --------- Core Integrity 161/550 Matter 300/300 Energy 100/100 System Corruption 0% Temperature Cool (9) Movement Core (50) Location -8/Storage Parts ------- > --- POWER (1) -------- (None) > --- PROPULSION (4) --- (None) > --- UTILITY (4) ------ Machine Analyzer Visual Processing Unit Improved Signal Interpreter > --- WEAPON (2) ------- (None) > --- INVENTORY (5) ---- Light Ion Engine Light Ion Engine Small Matter Pod (50) Peak State ------------ > --- POWER ------------ Cold Fusion Reactor > --- PROPULSION ------- Improved Hover Unit Improved Hover Unit > --- UTILITY ---------- Small Storage Unit Machine Analyzer Visual Processing Unit Improved Signal Interpreter > --- WEAPON ----------- Improved EM Shotgun Medium Laser > --- INVENTORY -------- Light Ion Engine Light Ion Engine Small Matter Pod [Rating: 23] Favorites ----------- Power Light Ion Engine Engine Light Ion Engine Reactor Cold Fusion Reactor Propulsion Improved Hover Unit Wheel Wheel Hover Unit Improved Hover Unit Utility Small Storage Unit Device Heat Sink Storage Small Storage Unit Processor Visual Processing Unit Protection Light Armor Plating Weapon Medium Laser Energy Gun Medium Laser Ballistic Gun Light Assault Rifle Launcher Grenade Launcher Build | -11 -10 -10 -9 -8 -8 ------- Run | Yrd Mat Min Mat Mat Sto Slots Evolved 4 | . . . 2 2 . Power . | . . . . . . Propulsion 2 | . . . 1 1 . Utility 2 | . . . 1 1 . Weapon . | . . . . . . Parts Attached 27 | 7 2 . 12 3 3 Power 4 | 1 . . 2 . 1 Engine 3 | 1 . . 2 . . Core . | . . . . . . Reactor 1 | . . . . . 1 Propulsion 6 | 2 . . 4 . . Treads . | . . . . . . Leg . | . . . . . . Wheel 2 | 2 . . . . . Hover 4 | . . . 4 . . Flight . | . . . . . . Utility 9 | 2 . . 5 . 2 Device 2 | 1 . . 1 . . Storage 2 | 1 . . 1 . . Processor 4 | . . . 2 . 2 Hackware . | . . . . . . Protection 1 | . . . 1 . . Artifact . | . . . . . . Weapon 8 | 2 2 . 1 3 . Energy Gun 5 | . 1 . 1 3 . Energy Cannon . | . . . . . . Ballistic Gun 2 | 2 . . . . . Ballistic Cannon . | . . . . . . Launcher 1 | . 1 . . . . Special Weapon . | . . . . . . Impact Weapon . | . . . . . . Slashing Weapon . | . . . . . . Piercing Weapon . | . . . . . . Special Melee Weapon . | . . . . . . Unidentified Prototypes 2 | . . . 1 . 1 Parts Lost 16 | . . . 6 3 7 Power 2 | . . . 1 . 1 Propulsion 5 | . . . 2 1 2 Utility 4 | . . . 1 2 1 Weapon 5 | . . . 2 . 3 Highest Loss Streak 7 | . . . 5 3 7 To Critical Strikes 1 | . . . . . 1 Average Backups 3 | . 2 3 5 4 3 Power . | . . 1 1 1 1 Propulsion . | . . . 1 . . Utility . | . . . 1 1 1 Weapon 1 | . 1 2 1 1 . Tool/Special . | . . . . . . Unused Backups . | . . . . . . Power . | . . . . . . Propulsion . | . . . . . . Utility . | . . . . . . Weapon . | . . . . . . Tool/Special . | . . . . . . Average Slot Usage (%) 86 | . 100 100 85 80 71 Engine 9 | . 14 14 8 9 6 Wheel 11 | . 28 28 8 . . Hover 12 | . . . 16 21 15 Device 7 | . 14 14 7 5 . Storage 12 | . 14 14 13 9 8 Processor 9 | . . . 8 9 26 Protection 1 | . . . 2 7 . Energy Gun 12 | . 9 14 10 15 13 Ballistic Gun 4 | . 5 . 7 2 . Launcher 4 | . 12 14 2 . . Peak Build Rating 23 | 7 7 7 15 15 23 Average Rating 10 | 4 6 7 11 13 16 On Entrance 7 | . 7 7 7 13 10 Naked Turns . | . . . . . . Heaviest Build 19 | 7 10 10 15 16 19 Greatest Support 21 | 20 20 20 21 21 14 Greatest Overweight (x) 3 | . . . 2 1 3 Average Overweight (x) . | . . . . . . Largest Inventory Capacity 8 | 5 5 5 8 8 8 Average Capacity 6 | 5 5 5 7 8 7 Most Carried 8 | . 3 3 8 8 4 Average Carried 3 | . 2 3 5 4 3 Final Capacity 8 | 5 5 5 8 8 5 Final Carried 6 | . 3 3 6 3 3 Class Distribution -------------------- 100% | Mutant Dominant Class ---------------- Mutant | -10/Materials Mutant | -10/Mines Mutant | -9/Materials Mutant | -8/Materials Mutant | -8/Storage Resources | -11 -10 -10 -9 -8 -8 ----------- Run | Yrd Mat Min Mat Mat Sto Matter Collected 689 | 234 35 103 172 100 45 Remotely . | . . . . . . Salvage Created 772 | 65 40 49 208 . 410 Parts 49 | 4 5 . 21 . 19 Haulers Intercepted . | . . . . . . Recyclers Shooed . | . . . . . . Parts Field Recycled . | . . . . . . Retrieved Matter . | . . . . . . Parts Self-Destructed . | . . . . . . Prevented . | . . . . . . Kills | -11 -10 -10 -9 -8 -8 ------- Run | Yrd Mat Min Mat Mat Sto Combat Hostiles Destroyed 19 | 1 . 1 10 . 7 Guns 13 | 1 . . 6 . 6 AOE 5 | . . . 4 . 1 Classes Destroyed 6 | 2 2 . 2 . . Worker 1 | 1 . . . . . Operator 1 | . 1 . . . . Watcher 2 | . 1 . 1 . . Swarmer 7 | . . . 7 . . Grunt 3 | 1 . 1 . . 1 Sentry 9 | . . . 3 . 6 Best Kill Streak 7 | 1 2 1 5 . 7 Combat Bots Only 7 | 1 . 1 4 . 7 Max Kills in Single Turn 3 | 1 1 1 3 . 1 Gunslinging . | . . . . . . Exploded 2 | . . . 2 . 1 Melee . | . . . . . . Uniques/NPCs Destroyed . | . . . . . . Combat | -11 -10 -10 -9 -8 -8 -------- Run | Yrd Mat Min Mat Mat Sto Hostile Shots Fired 216 | 2 6 2 87 39 80 Missed 80 | 1 4 . 33 11 31 Hits 136 | 1 2 2 54 28 49 Projectile 136 | 1 2 2 54 28 49 Critical Strikes 3 | . . . 1 . 2 Damage Taken 1889 | 12 28 30 756 280 783 Core 607 | . . 14 204 42 347 Absorbed by Shields . | . . . . . . Regen/Repaired (Parts) 68 | . . . 41 27 . Core Remaining (%) 81 | 100 . 94 49 . . Volleys Fired 76 | 11 5 6 27 1 26 Largest 2 | 2 2 1 2 2 2 Hottest 100 | 40 80 50 95 100 100 Shots Fired 122 | 22 6 6 53 2 33 Gun 115 | 22 5 6 47 2 33 Cannon . | . . . . . . Launcher 7 | . 1 . 6 . . Special . | . . . . . . Kinetic 48 | 22 . . 26 . . Thermal 37 | . 5 6 11 2 13 Explosive 7 | . 1 . 6 . . Electromagnetic 30 | . . . 10 . 20 Robot Hit Streak 9 | 5 3 9 6 . 9 Robot Miss Streak 7 | 3 1 . 7 2 3 Penetration Max . | . . . . . . Secondary Targets . | . . . . . . Shots Hit Robots 82 | 13 4 6 29 . 30 Core Hits 47 | 5 3 2 17 . 20 Critical Kills . | . . . . . . Critical Parts Destroyed . | . . . . . . Critical Strikes 4 | . . 3 . . 1 Burn 4 | . . 3 . . 1 Melee Attacks . | . . . . . . Impact . | . . . . . . Slashing . | . . . . . . Piercing . | . . . . . . Sneak Attacks . | . . . . . . Combat Hostiles . | . . . . . . Follow-up Attacks . | . . . . . . Damage Inflicted 1703 | 106 50 75 800 2 670 Guns 976 | 106 50 75 260 . 485 Cannons . | . . . . . . Explosions 701 | . . . 529 . 172 Melee . | . . . . . . Ramming 26 | . . . 11 2 13 Kinetic 217 | 106 . . 111 . . Thermal 769 | . 50 75 347 . 297 Explosive 245 | . . . 245 . . Electromagnetic 446 | . . . 86 . 360 Impact . | . . . . . . Slashing . | . . . . . . Piercing . | . . . . . . Highest Corruption . | . . . . . . Average Corruption . | . . . . . . Corruption Purged . | . . . . . . Corruption Blocked . | . . . . . . Overload Shots . | . . . . . . Overflow Damage 156 | . . . 156 . . Projectiles . | . . . . . . Explosions 156 | . . . 156 . . Melee . | . . . . . . Knockbacks . | . . . . . . Impact . | . . . . . . Kinetic . | . . . . . . Secondary . | . . . . . . Self-Inflicted Damage 230 | . . . 187 1 42 Shots 3 | . . . 2 . 1 Rammed 6 | . . . 1 1 4 Targets Rammed 6 | . . . 1 1 4 Kicked . | . . . . . . Crushed . | . . . . . . Highest Temperature 123 | . . 4 11 9 123 Average Temperature 27 | . . 4 4 6 40 Received Heat Transfer 435 | 6 15 18 72 36 288 Siege Activations . | . . . . . . Martial Activations . | . . . . . . Shielding Activations . | . . . . . . Robots Disrupted . | . . . . . . Combat Hostiles . | . . . . . . Robots Corrupted . | . . . . . . Combat Hostiles . | . . . . . . Parts Fried . | . . . . . . Impact Corruptions . | . . . . . . Robots Melted 1 | . . 1 . . . Combat Hostiles 1 | . . 1 . . . Parts Melted 1 | . . . . . 1 Heat Transferred 1521 | . 148 444 335 . 594 Parts Sabotaged . | . . . . . . Parts Stolen . | . . . . . . Parts Stripped . | . . . . . . Power Chain Reactions 1 | . . . . . 1 Alert | -11 -10 -10 -9 -8 -8 ------- Run | Yrd Mat Min Mat Mat Sto Maximum Alert Level 1 | . . . 1 . . Low Security (%) 89 | 100 100 100 70 100 100 Level 1 10 | . . . 29 . . Level 2 . | . . . . . . Level 3 . | . . . . . . Level 4 . | . . . . . . Level 5 . | . . . . . . High Security . | . . . . . . Max Security . | . . . . . . Peak Influence 246 | 20 17 65 246 93 182 Initial 93 | . 6 2 9 93 . Average 71 | 4 5 32 132 58 56 Influence Increases 914 | 25 44 75 474 . 296 Destroy 0b10 Robot/C 380 | 20 . 20 200 . 140 Destroy 0b10 Robot/NC 20 | 5 10 . 5 . . Destroy Leader 124 | . 2 10 52 . 60 Successful Hack 37 | . 12 . 14 . 11 Disable Machine 60 | . . . 45 . 15 Destroy Structure 53 | . 5 . 38 . 10 Partial Spotted 120 | . 15 . 45 . 60 Lose Combat Pursuer 120 | . . 45 75 . . Influence Decreases 772 | 15 47 57 277 222 154 Entered New Map 154 | . 4 5 16 129 . Time Decay 465 | 15 43 52 201 70 84 Lost Part 153 | . . . 60 23 70 Squads Dispatched 3 | . 2 . . 1 . Investigation 1 | . 1 . . . . Extermination . | . . . . . . Reinforcement 2 | . 1 . . 1 . Assault . | . . . . . . Garrison . | . . . . . . Intercept . | . . . . . . Searches Triggered . | . . . . . . Construction Impeded . | . . . . . . Haulers Reinforced . | . . . . . . Active Scanning Responses . | . . . . . . Cargo Convoy Interrupts . | . . . . . . Stealth | -11 -10 -10 -9 -8 -8 --------- Run | Yrd Mat Min Mat Mat Sto Distress Signals 4 | . . . 3 1 . Communications Jammed . | . . . . . . Distress Signals . | . . . . . . Times Spotted 56 | 1 8 2 19 14 12 Peak Tracking Total 13 | 1 6 4 7 13 10 Tactical Retreats 4 | . . 2 2 . . Traps | -11 -10 -10 -9 -8 -8 ------- Run | Yrd Mat Min Mat Mat Sto Traps Triggered 2 | . 1 . . . 1 Indirectly . | . . . . . . Trap Hack Attempts . | . . . . . . Triggered . | . . . . . . Disarmed . | . . . . . . Reprogrammed . | . . . . . . Reused . | . . . . . . Traps Extracted . | . . . . . . Installed . | . . . . . . Triggered . | . . . . . . Machines | -11 -10 -10 -9 -8 -8 ---------- Run | Yrd Mat Min Mat Mat Sto Machines Disabled 4 | . . . 3 . 1 Max in Single Turn 3 | . . . 3 . 1 Machines Repaired . | . . . . . . Machines Dismantled . | . . . . . . Machines Sabotaged . | . . . . . . Overloaded Fab Kills . | . . . . . . Hacking | -11 -10 -10 -9 -8 -8 --------- Run | Yrd Mat Min Mat Mat Sto Machines Accessed 13 | . 1 . 7 2 3 Terminals 8 | . 1 . 5 1 1 Fabricators . | . . . . . . Repair Stations 3 | . . . 2 1 . Recycling Units 1 | . . . . . 1 Scanalyzers . | . . . . . . Garrison Access 1 | . . . . . 1 Total Hacks 39 | . 3 . 28 4 4 Successful 20 | . 2 . 11 3 4 Failed 19 | . 1 . 17 1 . Catastrophic . | . . . . . . Database Lockouts . | . . . . . . Manual 5 | . . . 5 . . Terminals 25 | . 3 . 19 2 1 Fabricators . | . . . . . . Repair Stations 11 | . . . 9 2 . Recycling Units 2 | . . . . . 2 Scanalyzers . | . . . . . . Garrison Access 1 | . . . . . 1 Terminal Hacks 11 | . 2 . 7 1 1 Record 3 | . . . 3 . . Open Door 1 | . . . . . 1 Branch Access Points 1 | . 1 . . . . Dispatch Records 1 | . . . . 1 . Patrol Status 1 | . . . 1 . . Investigation Status 1 | . . . 1 . . Reinforcement Status 1 | . . . 1 . . Hauler Manifests 2 | . 1 . 1 . . Fabricator Hacks . | . . . . . . Repair Station Hacks 6 | . . . 4 2 . Scan Component 3 | . . . 2 1 . Repair 3 | . . . 2 1 . Recycling Unit Hacks 2 | . . . . . 2 Report Inventory 1 | . . . . . 1 Retrieve Components 1 | . . . . . 1 Scanalyzer . | . . . . . . Garrison Access Hacks 1 | . . . . . 1 Unlock Access 1 | . . . . . 1 Unauthorized Hacks . | . . . . . . Terminals . | . . . . . . Fabricators . | . . . . . . Repair Stations . | . . . . . . Recycling Units . | . . . . . . Scanalyzers . | . . . . . . Garrison Access . | . . . . . . Data Cores Recovered . | . . . . . . Used . | . . . . . . Hacking Detections 10 | . 1 . 7 1 1 Full Trace Events 1 | . . . 1 . . Feedback Events . | . . . . . . Feedback Blocked . | . . . . . . Robot Schematics Acquired . | . . . . . . Robots Built . | . . . . . . Authchips . | . . . . . . Time . | . . . . . . Total Robot Build Rating . | . . . . . . Part Schematics Acquired . | . . . . . . Parts Built . | . . . . . . Authchips . | . . . . . . Time . | . . . . . . Total Part Build Rating . | . . . . . . Parts Repaired 3 | . . . 2 1 . Time 90 | . . . 58 32 . Parts Recycled . | . . . . . . Recycled Matter . | . . . . . . Retrieved Matter . | . . . . . . Retrieved Components 3 | . . . . . 3 Parts Scanalyzed . | . . . . . . Part Schematics Acquired . | . . . . . . Parts Damaged . | . . . . . . Bothacking | -11 -10 -10 -9 -8 -8 ------------ Run | Yrd Mat Min Mat Mat Sto Used RIF Installer . | . . . . . . Robots Hacked . | . . . . . . Non-combat . | . . . . . . Combat . | . . . . . . Robot Hacks Applied . | . . . . . . Relay Couplers Released . | . . . . . . Fabnet Peak Effective % . | . . . . . . Robots Rewired . | . . . . . . Allies Hacked . | . . . . . . Hacks Repelled . | . . . . . . Allies | -11 -10 -10 -9 -8 -8 -------- Run | Yrd Mat Min Mat Mat Sto Total Allies 3 | . . 3 . . . Largest Group 3 | . . 3 . . . Highest-Rated Group 40 | . . 40 . . . Highest-Rated Ally 16 | . . 16 . . . Total Orders . | . . . . . . Ally Attacks . | . . . . . . Total Damage . | . . . . . . Kills . | . . . . . . Allies Corrupted . | . . . . . . Allies Melted . | . . . . . . Intel | -11 -10 -10 -9 -8 -8 ------- Run | Yrd Mat Min Mat Mat Sto Active Infowar (turns) 722 | . . . 355 150 217 Optics 722 | . . . 355 150 217 Machine Analysis 211 | . . . . . 211 Robot Analysis Total . | . . . . . . Derelict Logs Recovered . | . . . . . . Drone Launches . | . . . . . . Drone Recoveries . | . . . . . . Exploration | -11 -10 -10 -9 -8 -8 ------------- Run | Yrd Mat Min Mat Mat Sto Turns Passed 1276 | 113 159 158 479 150 217 Spaces Moved 1110 | 99 146 115 434 154 162 Core 22 | 17 . . 1 . 4 Treads . | . . . . . . Legs . | . . . . . . Wheels 474 | 82 146 115 131 . . Hover 614 | . . . 302 154 158 Flight . | . . . . . . Fastest Speed 50 | 50 80 80 52 52 56 Average Speed 70 | 74 80 80 69 66 60 Slowest Speed 200 | 80 80 80 150 116 200 Overloaded Moves . | . . . . . . Propulsion Burnouts . | . . . . . . Robots Hopped . | . . . . . . Potential Cave-ins . | . . . . . . Cave-ins Triggered . | . . . . . . Exploration Rate (%) 28 | 8 34 34 46 16 32 Regions Visited 5 Branch Regions 2 Pre-discovered Areas . | . . . . . . Known Exits Taken 1 | . 1 . . . . Unknown Exits Taken 4 | 1 . 1 1 1 . Scrap Searched 1 | . . 1 . . . Spaces Dug . | . . . . . . Terrain Destroyed 67 | . 5 . 53 . 9 Melee . | . . . . . . Projectile . | . . . . . . AOE 67 | . 5 . 53 . 9 Terrain Rammed . | . . . . . . Walls Destroyed . | . . . . . . Machines Disabled . | . . . . . . Actions | -11 -10 -10 -9 -8 -8 --------- Run | Yrd Mat Min Mat Mat Sto Total 1478 | 116 181 174 564 200 243 Wait 214 | . 26 54 68 33 33 Move 1105 | 98 145 114 433 153 162 Hop . | . . . . . . Pick Up 4 | . 1 . 3 . . Fast Attach 24 | 7 2 . 9 3 3 Attach 13 | . . . 10 2 1 Detach 15 | . 2 . 10 2 1 Swap 4 | . . . 3 1 . Drop 4 | . . . . 4 . Fire 76 | 11 5 6 27 1 26 Melee . | . . . . . . Ram 6 | . . . 1 1 4 Kick . | . . . . . . Crush . | . . . . . . Escape Stasis 13 | . . . . . 13 Rewire . | . . . . . . Trap . | . . . . . . Miscellaneous . | . . . . . . Route ------- -11/Scrapyard -10/Materials -10/Mines -9/Materials -8/Materials -8/Storage (discovered 1 exit: Gar) History --------- Turn | Location | Event 2 | -11/Scrapyard | Met Revision 17 79 | -11/Scrapyard | Discovered new exit (range 8) 114 | -11/Scrapyard | Entered Materials 159 | -10/Materials | Identified exit to Mines 273 | -10/Materials | Entered Mines 290 | -10/Mines | Assembled infested the area 308 | -10/Mines | Build established: Mutant 345 | -10/Mines | Discovered new exit (range 7) 394 | -10/Mines | Assisted by bots powering up and referring to "LRC-V3" 431 | -10/Mines | Entered Materials 431 | -9/Materials | Evolved 2 slots: Propulsion x1, Utility x1 481 | -9/Materials | Repaired Lgt. Ion Engine 653 | -9/Materials | Lost 5 parts (1p1n1u2w) 806 | -9/Materials | Core integrity fell below 50% 857 | -9/Materials | Repaired Imp. Hover Unit 907 | -9/Materials | Discovered new exit (range 3) 910 | -9/Materials | Entered another Materials area 910 | -8/Materials | Evolved 2 slots: Propulsion x1, Utility x1 1013 | -8/Materials | Repaired Imp. Hover Unit 1053 | -8/Materials | Discovered new exit (range 13) 1060 | -8/Materials | Entered Storage 1062 | -8/Storage | Identified exit to Garrison 1083 | -8/Storage | Lost 3 parts (1n2u) 1261 | -8/Storage | Core integrity fell below 50% 1267 | -8/Storage | Destroyed 7 combat bots 1277 | -8/Storage | Self-destructed Last Messages --------------- 01250_ Slammed into G-47 Trooper. 01250_ Imp. Hover Unit destroyed. 01250_ Critical hit (Burn: +37). 01252_ Slammed into G-47 Trooper. 01252_ G-47 Trooper IFF system glitched. 01254_ Sml. Storage Unit destroyed. 01256_ G-47 Trooper misfires. 01259_ U-05 Engineer lays Concrete. 01260_ U-05 Engineer builds a Wall. 01262_ G-47 Trooper misfires. 01265_ U-05 Engineer lays Concrete. 01269_ Cold Fusion Reactor destroyed. 01270_ U-05 Engineer lays Concrete. 01271_ U-05 Engineer builds a Door. 01272_ U-05 Engineer lays Concrete. 01273_ U-05 Engineer builds a Wall. 01274_ R-06 Scavenger collects Corrupted Lgt. Treads. 01274_ G-47 Trooper IFF system glitched. 01276_ U-05 Engineer lays Concrete. 01277_ R-06 Scavenger collects Beam Rifle. Map ----- +----------------------------------------------------+ | ????????????????????????????????????????? | | ????????????????????????????????????????? | | ????????????????????????????????????????? | | ????????????????????????????????????????? | | ????????????????????????????????????????? | | ????????????????????????????????????????? | | ????????????????????????????????????????? | | ????????????????????????????????????????? | | ????????????????????????????????????????? | | ????????????????????????????????????????? | | ????????????????????????????????????????? | | ????????????????????????????????????????? | | ????????????????????????????????????????? | | ????????????????????????????????????????? | | ????????????????????????????????????????? | | ????????????????????????????????????##### | | ?????????????????????????"T"????????# # | | ????????????????????????????????????# # | | ????????????????????????????????????# # | | ????????????????????????????????????# # | | ???????????????????????????########## # | | ???????????????????????????# # + | | ????????????????######?????# """ # # | | ????????????#??##;;#;#?????# """ # # | | ????????????#*##%[g;*###???# """ + # | | ????????????#!=%@gu/%!!#???# # # | | ????????????####!!Y#u###???# """ # # | | ????????###????##%##= #????# """ # # | | ????????# """???# #####????# """ # # | | ????????#""R"???#r#????????# # # | | ??????###"" "##?# #????????########## # | | ?????## ?# #?????????????????# + | | ?????# % ] # ################### # | | ??????# # # | | ??????# + + | | ??????# """ """ # # | | ????????""" """ ###+########+#########+## | | ????????""" """?# ## #?? | | ????????? ?# ## [ # | | ????????###" "??# ## """" # " | | ??????????#"R"??# ## """" # " | | ??????????#"""??# ## """" # T | | ??????????#?????# ## """" # % " | | ????????????????# ## # " | | ????????????????# ## # | | ?????#####??????# ## ######## | | ?????# " #??##### ####+######??????? | | ?????#"G"#??#"""# #### ###?????????? | | ????##">"####"Y"####+#### #?????????? | | ????# ! #?????????? | +----------------------------------------------------+ Best States ------------- Heat Dissipation 41 Energy Generation 17 Energy Capacity 200 Matter Stores 350 Matter Capacity 350 Sight Range 18 Terrain Scan Density 10 Armor Coverage 150 Evasion (%) 54 Item Schematics ----------------- None Robot Schematics ------------------ None Fabricated ------------ Nothing Repaired ---------- Lgt. Ion Engine | 55% | -9/Materials Imp. Hover Unit | 34% | -9/Materials Imp. Hover Unit | 22% | -8/Materials Alien Tech Used ----------------- None Achievements -------------- None Challenges ------------ None Game ------ Seed AerolevAlphaWings Manual? 0 Play Time 00:30:06 Cumulative 10.2 hours Start 2025.09.03 @ 18:28:55 End 2025.09.03 @ 18:58:46 Sessions 1 Manual Loads 0 Difficulty Rogue Special Mode None Game No. 7 Rogue 7 Adventurer 0 Explorer 0 Win Type - Total 0 Types 0/0/0/0/0/0/0/0/0/0 Lore% 3 Gallery% 10 Achievement% 11 Wizard Run 0 Options --------- Layout 0 ASCII 1 Keyboard 1 Movement Vi Keybinds 0 Fullscreen 2 Font 24/Proggy Map View 76x50 Zoom Use 0% Tactical HUD 1 Map Filters NONE Filters NONE Steam 1 RUN: 7cd68862-4239-4dea-80ab-0313fcc311c5